bitfinex-derivatives/quotes_SOLF0:USTF0_20250709
["timestamp","ask_amount","ask_price","bid_price","bid_amount"]
[1752099868245,6.3446,157.56,157.54,6.3452]
[1752099868446,6.3446,157.56,157.53,6.3456]
[1752099868638,188.54,157.58,157.51,2.2631]
[1752099868838,6.3446,157.56,157.51,2.2631]
[1752099869044,6.3446,157.56,157.53,6.3455]
[1752099869840,6.345,157.55,157.53,6.3455]
[1752099870545,6.3454,157.54,157.52,6.3459]
[1752099870849,6.3454,157.54,157.48,2.1953]
[1752099871345,6.3454,157.54,157.51,6.3463]
[1752099872247,6.3458,157.53,157.51,6.3463]
[1752099872641,188.5,157.57,157.48,2.1953]
[1752099872847,6.3466,157.51,157.45,19.75930102]
[1752099873148,6.3466,157.51,157.48,6.3475]
[1752099873847,6.347,157.5,157.47,6.3478]
[1752099874348,7.6029517,157.54,157.45,19.75930102]
[1752099874548,6.3467,157.51,157.45,2.2118]
[1752099875048,6.3467,157.51,157.48,6.3475]
[1752099876346,6.3467,157.51,157.49,6.3473]
[1752099876747,7.72985814,157.55,157.49,6.3473]
[1752099876949,7.72985814,157.54,157.49,6.3473]
[1752099877144,188.5,157.57,157.49,6.3473]
[1752099877345,6.3464,157.52,157.48,6.3476]
[1752099877845,6.3466,157.51,157.48,6.3476]
[1752099878741,6.3463,157.52,157.48,6.3476]
[1752099879451,6.3466,157.51,157.48,6.3476]
[1752099880250,6.3463,157.52,157.48,6.3476]
[1752099881050,6.3466,157.51,157.48,6.3476]
[1752099881245,188.5,157.57,157.47,6.3479]
[1752099881547,7.69996089,157.56,157.45,2.2118]
[1752099881753,7.69996089,157.55,157.45,2.2118]
[1752099881951,6.3468,157.51,157.48,6.3476]
[1752099886453,6.3463,157.52,157.48,6.3476]
[1752099886654,7.69413667,157.55,157.48,6.3476]
[1752099886953,7.69413667,157.54,157.48,6.3476]
[1752099887255,6.3465,157.51,157.48,6.3476]
[1752099891962,7.68334192,157.55,157.45,2.2118]
[1752099892162,7.68334192,157.56,157.45,2.2118]
[1752099892363,188.22,157.56,157.45,2.2118]
[1752099892564,6.3456,157.54,157.51,6.3463]
[1752099894665,6.3458,157.53,157.5,6.3468]
[1752099894860,7.68242889,157.57,157.5,6.3468]
[1752099895163,6.3461,157.52,157.49,6.3471]
[1752099896262,6.3461,157.52,157.5,6.3469]
[1752099896859,6.3461,157.52,157.49,6.3472]
[1752099899070,6.3461,157.52,157.5,6.3469]
[1752099900969,7.88715397,157.57,157.49,6.3471]
[1752099901162,7.88715397,157.56,157.49,6.3471]
[1752099901366,6.3464,157.52,157.49,6.3471]
[1752099902171,6.3466,157.51,157.48,6.3476]
[1752099902375,6.3466,157.51,157.45,2.2885]
[1752099903570,6.3466,157.51,157.49,6.3471]
[1752099905473,6.3464,157.52,157.49,6.3471]
[1752099905774,6.3464,157.52,157.45,2.2885]
[1752099906172,6.3464,157.52,157.49,6.3472]
[1752099906374,6.3467,157.51,157.49,6.3472]
[1752099909576,6.3463,157.52,157.49,6.3472]
[1752099911681,6.3463,157.52,157.45,2.2885]
[1752099912571,6.3463,157.52,157.49,6.3471]
[1752099913080,6.3463,157.52,157.5,6.3469]
[1752099913474,187.92,157.57,157.45,2.2885]
[1752099913781,7.89545097,157.56,157.51,6.3463]
[1752099913981,6.3454,157.54,157.51,6.3463]
[1752099914372,6.3446,157.56,157.46,17.54750102]
[1752099914581,548.3,157.59,157.47,17.54750102]
[1752099914773,548.3,157.59,157.49,17.54750102]
[1752099914982,6.3445,157.56,157.54,6.3451]
[1752099915781,6.3443,157.57,157.54,6.3451]
[1752099916781,6.3446,157.56,157.54,6.3451]
[1752099917182,548.3,157.59,157.54,6.3451]
[1752099917383,7.89005778,157.58,157.54,6.3451]
[1752099917678,6.3442,157.57,157.55,6.3449]
[1752099920475,6.3442,157.57,157.54,6.3452]
[1752099922687,548.3,157.59,157.5,4.4223]
[1752099923886,6.3456,157.54,157.51,6.3464]
[1752099924180,187.74,157.56,157.51,6.3464]
[1752099924384,6.3465,157.52,157.49,6.3472]
[1752099924778,187.74,157.56,157.46,2.2284]
[1752099924981,6.3467,157.51,157.48,6.3475]
[1752099927188,6.347,157.5,157.47,6.348]
[1752099927393,12.30711614,157.55,157.43,19.89168953]
[1752099927588,7.84773358,157.54,157.43,2.2664]
[1752099927783,6.3473,157.5,157.43,2.2664]
[1752099928389,6.3473,157.5,157.47,6.3481]
[1752099928887,6.3474,157.49,157.47,6.3481]
[1752099929082,6.3474,157.49,157.43,2.2664]
[1752099929083,187.68,157.51,157.43,2.2664]
[1752099929483,6.3485,157.47,157.42,2.2901]
[1752099929686,6.3485,157.47,157.44,6.3493]
[1752099933598,6.3485,157.47,157.45,6.3489]
[1752099933794,6.3485,157.47,157.42,2.2901]
[1752099934094,6.3485,157.47,157.45,6.3489]
[1752099934394,6.36,157.47,157.32,17.62528953]
[1752099934696,9.97691021,157.46,157.31,17.62528953]
[1752099934897,375.28,157.45,157.32,19.83018953]
[1752099935191,6.3499,157.43,157.4,6.3507]
[1752099936298,6.3499,157.43,157.39,6.3512]
[1752099936492,375.28,157.45,157.32,2.2049]
[1752099936900,7.8919066,157.44,157.32,2.2049]
[1752099937299,2.2731,157.43,157.32,2.2049]
[1752099937601,6.3519,157.38,157.3,62.0]
[1752099937800,6.3519,157.38,157.3,64.131]
[1752099938100,6.3515,157.39,157.31,6.56423937]
[1752099938299,6.3515,157.39,157.32,6.56423937]
[1752099938500,6.3515,157.39,157.35,6.3528]
[1752099938700,6.3515,157.39,157.36,6.56423937]
[1752099938902,6.3515,157.39,157.37,6.56423937]
[1752099939100,6.3515,157.39,157.38,6.56423937]
[1752099940202,6.3518,157.38,157.35,6.3528]
[1752099940400,6.3518,157.38,157.36,6.54650294]
[1752099940601,6.3518,157.38,157.37,6.54650294]
[1752099943103,6.3518,157.38,157.35,6.353]
[1752099943404,6.3518,157.38,157.36,6.53420899]
[1752099943597,6.3518,157.38,157.35,6.353]
[1752099943803,6.3518,157.38,157.36,6.53420898]
[1752099944104,6.3518,157.38,157.33,6.3537]
[1752099944305,6.3518,157.38,157.34,6.53088226]
[1752099944603,6.3518,157.38,157.35,6.53088226]
[1752099944802,6.3518,157.38,157.36,6.53088226]
[1752099945104,6.3522,157.37,157.33,6.3537]
[1752099945399,6.3522,157.37,157.34,6.52919428]
[1752099945604,6.3522,157.37,157.35,6.52919428]
[1752099945797,6.3522,157.37,157.36,6.52919428]
[1752099947205,6.3522,157.37,157.34,6.57209349]
[1752099947406,6.3522,157.37,157.35,6.57209349]
[1752099947608,6.3522,157.37,157.36,6.57209349]
[1752099948609,375.28,157.4,157.3,2.131]
[1752099948813,375.28,157.4,157.31,6.57210218]
[1752099949104,375.28,157.4,157.32,6.57210218]
[1752099949105,6.3538,157.33,157.32,6.57210218]
[1752099949301,375.18,157.34,157.29,2.273]
[1752099949503,375.18,157.34,157.29,6.3552]
[1752099949701,375.18,157.34,157.3,6.57396954]
[1752099949901,375.18,157.34,157.29,6.3552]
[1752099950108,375.18,157.34,157.3,6.57351]
[1752099950303,6.3544,157.32,157.29,6.3552]
[1752099950509,6.3544,157.32,157.3,6.56967419]
[1752099950812,375.18,157.34,157.25,2.2453]
[1752099951107,375.18,157.34,157.26,6.56953386]
[1752099951410,375.18,157.34,157.27,6.56953386]
[1752099951710,375.18,157.34,157.28,68.56953386]
[1752099951906,375.18,157.34,157.29,6.56953386]
[1752099952107,375.18,157.34,157.32,6.3539]
[1752099953810,381.5336,157.34,157.31,6.3544]
[1752099954012,381.5336,157.34,157.32,6.59888167]
[1752099954211,381.5336,157.34,157.31,6.3544]
[1752099954411,381.5336,157.34,157.32,6.59760923]
[1752099954611,381.5336,157.34,157.31,6.3544]
[1752099954805,381.5336,157.34,157.32,12.95170923]
[1752099955008,381.5336,157.34,157.32,6.3541]
[1752099956214,375.18,157.34,157.32,6.3541]
[1752099956414,375.18,157.34,157.28,62.0]
[1752099956614,375.18,157.34,157.29,6.59451053]
[1752099956816,375.18,157.34,157.3,6.59451053]
[1752099957015,381.5334,157.34,157.32,6.354]
[1752099957313,375.18,157.34,157.32,6.354]
[1752099958617,375.18,157.34,157.33,6.3538]
[1752099962124,375.18,157.34,157.32,6.354]
[1752099963721,375.18,157.34,157.33,6.3538]
[1752099965725,375.18,157.34,157.33,12.94058221]
[1752099967222,550.8875,157.39,157.33,6.58678221]
[1752099967528,374.86,157.38,157.34,6.58678221]
[1752099967824,374.86,157.38,157.35,6.58678221]
[1752099968028,6.3524,157.37,157.34,6.353]
[1752099968229,374.82,157.36,157.35,6.57668466]
[1752099969122,374.82,157.36,157.35,12.92968466]
[1752099972426,374.82,157.36,157.35,6.57668466]
[1752099973030,374.82,157.36,157.35,6.57544635]
[1752099975635,381.1726,157.36,157.35,6.59442423]
[1752099975930,374.82,157.36,157.35,12.94742423]
[1752099979332,374.82,157.36,157.35,6.59442423]
[1752099980231,381.1726,157.36,157.35,6.59442423]
[1752099981338,381.1726,157.36,157.34,6.3532]
[1752099981538,381.1726,157.36,157.35,6.62467479]
[1752099982236,389.05554116,157.36,157.35,6.62467479]
[1752099982440,389.05625729,157.36,157.35,6.62467479]
[1752099985337,6.3534,157.34,157.32,6.3541]
[1752099985536,374.38,157.33,157.32,6.3541]
[1752099995144,6.3542,157.32,157.3,6.3547]
[1752099995344,374.2,157.31,157.3,6.3547]
[1752099999446,374.08,157.32,157.24,62.0]
[1752099999651,374.08,157.35,157.26,12.713]
[1752100000251,374.08,157.35,157.34,6.3534]
[1752100015066,374.08,157.35,157.29,2.3415]
[1752100015869,380.4334,157.35,157.32,6.354]
[1752100016770,6.3536,157.34,157.32,6.354]
[1752100016971,373.68,157.33,157.32,6.354]
[1752100021174,373.68,157.33,157.31,6.3544]
[1752100021377,380.034,157.33,157.26,17.6985256]
[1752100021578,380.034,157.33,157.3,6.3548]
[1752100022075,380.034,157.33,157.31,6.3545]
[1752100022977,373.68,157.33,157.31,6.3545]
[1752100023678,380.0338,157.33,157.31,6.3545]
[1752100024679,6.3542,157.32,157.3,6.3548]
[1752100024879,186.78,157.31,157.3,6.3548]
[1752100035090,553.5109,157.39,157.25,19.8405256]
[1752100035291,200.83381216,157.38,157.26,17.6985256]
[1752100035491,200.83381216,157.38,157.35,6.3528]
[1752100035492,186.68,157.38,157.35,6.3528]
[1752100035687,548.9,157.39,157.27,17.6985256]
[1752100035893,548.9,157.39,157.29,20.0339256]
[1752100036192,186.68,157.4,157.3,12.7099]
[1752100036392,193.031,157.4,157.31,2.1272]
[1752100036589,186.68,157.4,157.31,2.1272]
[1752100036791,6.3514,157.39,157.36,6.3523]
[1752100037396,6.3514,157.39,157.31,2.1272]
[1752100037397,6.3519,157.38,157.35,6.3528]
[1752100037893,6.3519,157.38,157.31,2.1272]
[1752100038295,6.3519,157.38,157.35,6.3527]
[1752100041398,6.3519,157.38,157.36,6.3525]
[1752100041600,186.66,157.4,157.31,2.1272]
[1752100042502,6.3522,157.37,157.31,2.1272]
[1752100043000,186.66,157.4,157.31,2.1272]
[1752100043202,6.352,157.38,157.35,6.3528]
[1752100044203,6.352,157.38,157.36,6.3526]
[1752100051606,6.352,157.38,157.35,6.3528]
[1752100052800,6.3522,157.37,157.35,6.3528]
[1752100057109,6.3526,157.36,157.31,2.1272]
[1752100057310,6.3526,157.36,157.29,2.3354]
[1752100057703,6.3526,157.36,157.33,6.3536]
[1752100059906,6.3526,157.36,157.34,6.3533]
[1752100060709,6.3524,157.37,157.34,6.3533]
[1752100061012,6.3524,157.37,157.35,6.3529]
[1752100062108,6.3526,157.36,157.34,6.3532]
[1752100063316,6.3524,157.37,157.35,6.353]
[1752100068321,194.24709275,157.39,157.29,64.3354]
[1752100068520,186.32,157.39,157.29,64.3354]
[1752100070125,6.3518,157.38,157.36,6.3524]
[1752100070824,192.6718,157.39,157.37,6.3522]
[1752100071123,186.32,157.39,157.29,64.3354]
[1752100071323,562.01808398,157.43,157.29,64.3354]
[1752100071519,6.3517,157.39,157.36,6.3523]
[1752100072129,6.352,157.38,157.35,6.3528]
[1752100072723,6.3523,157.37,157.35,6.3528]
[1752100073520,8.91038398,157.42,157.29,2.3354]
[1752100073824,194.17919523,157.41,157.29,2.3354]
[1752100074025,6.3521,157.38,157.29,2.3354]
[1752100074725,6.3523,157.37,157.29,2.3354]
[1752100074926,186.24,157.4,157.29,2.3354]
[1752100075120,6.3531,157.35,157.33,6.3537]
[1752100076725,6.3531,157.35,157.32,6.3541]
[1752100077827,6.3534,157.34,157.32,6.3541]
[1752100079431,6.3534,157.34,157.29,2.3354]
[1752100079432,6.3534,157.34,157.31,6.3544]
[1752100079932,6.3539,157.33,157.31,6.3544]
[1752100080628,6.3536,157.34,157.31,6.3544]
[1752100081733,8.91038398,157.38,157.27,62.0]
[1752100081935,7.99505868,157.37,157.27,62.0]
[1752100082235,7.99505868,157.36,157.27,62.0]
[1752100082434,186.16,157.38,157.27,62.0]
[1752100082637,7.99519431,157.37,157.27,62.0]
[1752100082836,14.34799431,157.36,157.33,6.3535]
[1752100083034,6.3528,157.36,157.27,62.0]
[1752100083938,6.3528,157.36,157.33,6.3535]
[1752100087341,6.3528,157.36,157.34,6.3534]
[1752100090438,6.353,157.35,157.33,6.3536]
[1752100090845,186.14,157.38,157.26,2.205]
[1752100091046,6.3541,157.33,157.3,6.3547]
[1752100092946,6.3543,157.32,157.3,6.3547]
[1752100094847,6.3546,157.31,157.28,6.3555]
[1752100095046,10.22579339,157.37,157.28,6.3555]
[1752100095247,7.98369339,157.36,157.28,6.3555]
[1752100095547,7.98369339,157.36,157.26,2.205]
[1752100095548,7.98369339,157.35,157.26,2.205]
[1752100095848,7.98369339,157.34,157.26,2.205]
[1752100096043,6.3542,157.32,157.26,2.205]
[1752100097247,6.3542,157.32,157.3,6.3548]
[1752100100855,6.354,157.33,157.31,6.3546]
[1752100101253,6.354,157.33,157.26,2.205]
[1752100101454,6.3542,157.32,157.3,6.3548]
[1752100102053,6.354,157.33,157.3,6.3548]
[1752100102245,2.2421,157.37,157.3,6.3548]
[1752100102554,7.95240255,157.36,157.3,6.3548]
[1752100102853,6.3544,157.32,157.3,6.3548]
[1752100103353,6.3544,157.32,157.29,6.3552]
[1752100103753,6.3546,157.31,157.29,6.3552]
[1752100103952,6.3546,157.31,157.28,6.3556]
[1752100104152,6.3546,157.31,157.26,2.205]
[1752100104747,2.2421,157.37,157.26,2.205]
[1752100104954,7.9578035,157.36,157.26,2.205]
[1752100105253,6.3545,157.32,157.26,2.205]
[1752100105854,6.3545,157.32,157.29,6.3551]
[1752100108052,6.3546,157.31,157.28,6.3556]
[1752100108553,2.2421,157.37,157.28,6.3556]
[1752100108856,7.95906817,157.36,157.28,6.3556]
[1752100109054,7.95906817,157.35,157.28,6.3556]
[1752100109256,7.95906817,157.34,157.28,6.3556]
[1752100109456,2.2421,157.37,157.28,6.3556]
[1752100109657,7.95907159,157.36,157.28,6.3556]
[1752100109955,7.95907159,157.35,157.28,6.3556]
[1752100110156,6.3549,157.31,157.28,6.3556]
[1752100110656,6.3545,157.32,157.29,6.3554]
[1752100114057,2.2421,157.37,157.26,2.205]
[1752100114258,193.87238507,157.36,157.26,2.205]
[1752100114452,7.95238507,157.35,157.26,2.205]
[1752100114758,6.3541,157.33,157.3,6.3548]
[1752100116862,185.92,157.36,157.3,6.3548]
[1752100117063,7.95467557,157.35,157.3,6.3548]
[1752100117262,7.95467557,157.34,157.29,6.3552]
[1752100117561,6.3544,157.32,157.29,6.3552]
[1752100118362,6.3547,157.31,157.28,6.3556]
[1752100121270,7.95917738,157.35,157.28,6.3556]
[1752100121466,7.95917738,157.34,157.28,6.3556]
[1752100121771,7.95917738,157.33,157.29,6.3554]
[1752100121963,185.9,157.36,157.29,6.3554]
[1752100122167,7.96720357,157.35,157.29,6.3554]
[1752100122370,7.96720357,157.34,157.29,6.3554]
[1752100122569,7.96720357,157.33,157.29,6.3554]
[1752100122773,185.9,157.36,157.29,6.3554]
[1752100123070,6.3549,157.31,157.29,6.3554]
[1752100123770,6.3549,157.31,157.28,6.3556]
[1752100128074,185.9,157.36,157.24,2.2254]
[1752100128373,7.96146112,157.35,157.24,2.2254]
[1752100128576,6.3543,157.32,157.29,6.355]
[1752100128770,6.3543,157.32,157.24,2.2254]
[1752100129769,6.3543,157.32,157.29,6.355]
[1752100132677,6.3543,157.32,157.3,6.355]
[1752100137585,185.84,157.35,157.24,2.2254]
[1752100137885,7.96839715,157.34,157.24,2.2254]
[1752100138085,7.96839715,157.33,157.24,2.2254]
[1752100138287,7.96869436,157.32,157.24,2.2254]
[1752100138488,6.3551,157.3,157.28,6.3556]
[1752100138788,194.76718238,157.35,157.24,2.2254]
[1752100139089,7.96881313,157.34,157.24,2.2254]
[1752100139292,7.96881313,157.33,157.24,2.2254]
[1752100139587,7.96881313,157.32,157.24,2.2254]
[1752100139787,194.76718238,157.35,157.24,2.2254]
[1752100139987,7.96892396,157.34,157.24,2.2254]
[1752100140186,6.3545,157.32,157.3,6.3549]
[1752100140789,6.3545,157.32,157.29,6.3553]
[1752100141086,6.3546,157.31,157.25,62.0]
[1752100141283,194.70718238,157.35,157.28,6.3558]
[1752100141486,7.96911328,157.34,157.28,6.3558]
[1752100141789,6.3548,157.31,157.28,6.3558]
[1752100143191,194.70718238,157.35,157.26,6.3565]
[1752100143389,7.96910454,157.34,157.24,2.2254]
[1752100143589,7.96910454,157.33,157.24,2.2254]
[1752100143791,7.96910454,157.32,157.24,2.2254]
[1752100144089,6.3552,157.3,157.27,6.356]
[1752100145190,6.3552,157.3,157.28,6.3558]
[1752100145591,6.3548,157.31,157.28,6.3558]
[1752100145994,194.70718238,157.35,157.28,6.3558]
[1752100146293,7.960576,157.34,157.28,6.3558]
[1752100146494,7.960576,157.33,157.28,6.3558]
[1752100146695,194.70718238,157.35,157.28,6.3558]
[1752100146696,7.960576,157.32,157.28,6.3558]
[1752100146892,14.315576,157.31,157.28,6.3558]
[1752100147089,6.355,157.31,157.28,6.3558]
[1752100148196,6.3551,157.3,157.28,6.3558]
[1752100148597,6.3551,157.3,157.27,6.356]
[1752100154199,6.3554,157.29,157.27,6.356]
[1752100161010,6.3552,157.3,157.24,2.2254]
[1752100161811,6.3548,157.31,157.24,2.2254]
[1752100162712,6.3548,157.31,157.24,64.2254]
[1752100163012,6.3548,157.31,157.24,2.2254]
[1752100163611,6.3552,157.3,157.27,6.3558]
[1752100163812,6.3552,157.3,157.24,2.2254]
[1752100164212,6.3548,157.31,157.24,2.2254]
[1752100164413,8.92718238,157.34,157.24,2.2254]
[1752100164708,185.78,157.35,157.24,2.2254]
[1752100164709,7.95061074,157.33,157.24,19.97704985]
[1752100164916,14.30521074,157.32,157.29,6.3552]
[1752100165106,6.3546,157.32,157.29,6.3552]
[1752100165512,6.3546,157.32,157.3,6.3548]
[1752100165714,6.354,157.33,157.24,19.97704985]
[1752100165914,7.95052893,157.32,157.24,19.97704985]
[1752100166109,6.354,157.33,157.25,62.0]
[1752100166313,7.9505135,157.32,157.25,62.0]
[1752100166515,6.354,157.33,157.25,62.0]
[1752100166715,7.99556359,157.32,157.25,62.0]
[1752100166909,6.354,157.33,157.25,62.0]
[1752100167216,7.99556359,157.32,157.31,6.3544]
[1752100169519,549.0,157.36,157.33,6.3537]
[1752100169718,8.00979973,157.35,157.33,6.3537]
[1752100169918,549.0,157.36,157.25,62.0]
[1752100170117,8.0095647,157.35,157.32,6.3542]
[1752100170417,549.0,157.36,157.32,6.3542]
[1752100171118,6.3534,157.35,157.32,6.3542]
[1752100172722,6.3534,157.34,157.32,6.3542]
[1752100174223,6.3538,157.33,157.24,2.2254]
[1752100174819,6.3535,157.34,157.31,6.3544]
[1752100175422,185.58,157.35,157.3,6.3549]
[1752100175622,8.03219824,157.34,157.3,6.3549]
[1752100175925,185.58,157.35,157.3,6.3549]
[1752100176124,8.03219824,157.34,157.3,6.3549]
[1752100176422,185.58,157.35,157.3,6.3549]
[1752100176624,8.03194739,157.34,157.29,6.3554]
[1752100176818,185.58,157.35,157.29,6.3554]
[1752100177021,8.03194867,157.34,157.29,6.3554]
[1752100177221,8.03194867,157.33,157.29,6.3554]
[1752100177422,8.03247221,157.32,157.29,6.3554]
[1752100177623,185.58,157.35,157.29,6.3554]
[1752100177820,6.3546,157.32,157.29,6.3554]
[1752100178023,6.3546,157.32,157.3,6.355]
[1752100178225,6.354,157.33,157.3,6.355]
[1752100180829,6.354,157.33,157.31,6.3546]
[1752100182030,185.54,157.33,157.24,2.2254]
[1752100182231,6.3536,157.34,157.24,2.2254]
[1752100182526,191.8936,157.34,157.31,6.3544]
[1752100183232,6.3536,157.34,157.31,6.3544]
[1752100183426,191.8736,157.34,157.31,6.3544]
[1752100186029,6.3536,157.34,157.31,6.3544]
[1752100186233,185.52,157.33,157.31,6.3544]
[1752100186633,191.8738,157.33,157.31,6.3544]
[1752100189635,191.8738,157.33,157.3,6.3549]
[1752100192639,191.8738,157.33,157.31,6.3546]
[1752100194841,185.52,157.33,157.31,6.3546]
[1752100196240,191.8739,157.33,157.31,6.3546]
[1752100202345,191.8739,157.33,157.3,6.3548]
[1752100202646,6.3543,157.32,157.3,6.3548]
[1752100203945,6.3546,157.31,157.29,6.3553]
[1752100204844,185.52,157.33,157.25,17.74048669]
[1752100205045,185.52,157.33,157.24,2.2254]
[1752100205445,191.874,157.33,157.31,6.3545]
[1752100206749,6.354,157.33,157.31,6.3545]
[1752100206948,11.26156249,157.38,157.24,2.2254]
[1752100207246,7.95272018,157.37,157.25,62.0]
[1752100207448,7.95272018,157.36,157.25,62.0]
[1752100207639,185.38,157.38,157.25,62.0]
[1752100207842,6.353,157.35,157.33,6.3535]
[1752100208648,6.3531,157.35,157.32,6.3541]
[1752100209952,6.3531,157.35,157.33,6.3537]
[1752100211648,6.3528,157.36,157.33,6.3537]
[1752100212253,6.353,157.35,157.27,2.3302]
[1752100212755,6.353,157.35,157.33,6.3536]
[1752100213253,6.3528,157.36,157.33,6.3536]
[1752100213551,6.3528,157.36,157.27,2.3302]
[1752100213552,6.3528,157.36,157.34,6.3533]
[1752100215254,191.6924,157.37,157.27,2.3302]
[1752100215457,7.97091307,157.36,157.28,62.0]
[1752100215654,634.72377293,157.4,157.28,62.0]
[1752100215855,6.352,157.38,157.29,2.3125]
[1752100216054,7.97110371,157.37,157.29,2.3125]
[1752100216256,6.352,157.38,157.29,2.3125]
[1752100216455,7.96973085,157.37,157.35,6.3526]
[1752100216754,191.6516,157.39,157.29,2.3125]
[1752100216954,7.9698911,157.38,157.36,6.3524]
[1752100217257,6.3516,157.39,157.36,6.3524]
[1752100217258,7.9698911,157.37,157.36,6.3524]
[1752100217448,7.9698911,157.37,157.35,6.3529]
[1752100217652,185.3,157.39,157.35,6.3529]
[1752100217854,7.96904694,157.38,157.35,6.3529]
[1752100218055,7.96904694,157.37,157.35,6.3529]
[1752100218257,6.3519,157.38,157.35,6.3529]
[1752100218458,185.3,157.39,157.35,6.3529]
[1752100218759,7.9675817,157.38,157.29,2.3125]
[1752100219051,6.3528,157.36,157.29,2.3125]
[1752100219256,6.3528,157.36,157.33,6.3535]
[1752100221359,6.3528,157.36,157.34,6.3533]
[1752100226462,191.6124,157.37,157.34,6.3533]
[1752100228762,185.26,157.37,157.29,2.3125]
[1752100229562,6.352,157.38,157.29,2.3125]
[1752100229763,7.95281554,157.37,157.29,2.3125]
[1752100229961,185.2,157.38,157.29,2.3125]
[1752100230163,7.95281554,157.37,157.36,6.3524]
[1752100230565,7.95281554,157.37,157.29,2.3125]
[1752100230864,185.2,157.38,157.35,6.3527]
[1752100231065,7.95264335,157.37,157.35,6.3527]
[1752100231263,185.2,157.38,157.35,6.3527]
[1752100231464,7.95251469,157.37,157.35,6.3527]
[1752100231666,185.2,157.38,157.35,6.3527]
[1752100231965,7.95251469,157.37,157.35,6.3527]
[1752100232165,6.3522,157.37,157.35,6.3527]
[1752100235368,6.3519,157.38,157.36,6.3526]
[1752100235669,7.95266642,157.37,157.36,6.3526]
[1752100235968,191.5119,157.38,157.36,6.3526]
[1752100239069,191.5119,157.38,157.35,6.3528]
[1752100239271,14.30579254,157.37,157.35,6.3528]
[1752100239569,6.3522,157.37,157.35,6.3528]
[1752100240170,191.512,157.38,157.35,6.3528]
[1752100240370,7.95419002,157.37,157.35,6.3528]
[1752100240569,191.512,157.38,157.35,6.3528]
[1752100240772,7.95442776,157.37,157.35,6.3528]
[1752100240971,191.512,157.38,157.35,6.3528]
[1752100241170,7.95442776,157.37,157.35,6.3528]
[1752100241371,191.512,157.38,157.35,6.3528]
[1752100241563,7.95482952,157.37,157.35,6.3528]
[1752100241863,191.512,157.38,157.35,6.3528]
[1752100242067,7.95482952,157.37,157.35,6.3528]
[1752100242267,191.512,157.38,157.35,6.3528]
[1752100242463,7.95528883,157.37,157.35,6.3528]
[1752100242672,191.512,157.38,157.35,6.3528]
[1752100242868,7.95528883,157.37,157.35,6.3528]
[1752100243172,191.512,157.38,157.35,6.3528]
[1752100243371,7.95542074,157.37,157.35,6.3528]
[1752100243571,191.512,157.38,157.35,6.3528]
[1752100243776,7.94778413,157.37,157.35,6.3528]
[1752100243973,191.512,157.38,157.35,6.3528]
[1752100244271,7.94778413,157.37,157.35,6.3528]
[1752100244467,191.512,157.38,157.35,6.3528]
[1752100244774,7.94837273,157.37,157.36,6.3526]
[1752100245269,191.512,157.38,157.36,6.3526]
[1752100246078,7.94880604,157.37,157.36,6.3526]
[1752100249277,7.94880604,157.37,157.35,6.3528]
[1752100249579,370.1,157.36,157.35,6.3528]
[1752100251278,378.06318237,157.36,157.35,6.3528]
[1752100253379,384.41578237,157.36,157.34,6.3533]
[1752100253580,376.4526,157.36,157.34,6.3533]
[1752100253881,370.1,157.36,157.35,6.353]
[1752100254182,378.06602325,157.36,157.35,6.353]
[1752100256688,384.41862325,157.36,157.34,6.3533]